fUSD/lending_fUSD_20260421
["ID","MTS","AMOUNT","RATE_DAILY","PERIOD"]
[420935764,1776747040243,-5018.71878087,0.00010388,2]
[420935765,1776747040253,-152.0,0.00010429,7]
[420935766,1776747040263,-152.0,0.00010429,7]
[420935767,1776747040272,-152.0,0.00010429,7]
[420935768,1776747040282,-164.0,0.00010432,3]
[420935769,1776747040291,-257.97,0.00010455,2]
[420935770,1776747040300,-8205.9480324,0.00010457,2]
[420935771,1776747040309,-9060.2122728,0.00010457,2]
[420935772,1776747040318,-11864.8054059,0.00010457,2]
[420935773,1776747040327,-523.68401068,0.00010473,2]
[420935774,1776747040337,-161.0,0.0001059,2]
[420935775,1776747040346,-2000.0,0.0001059,2]
[420935776,1776747040358,-2000.0,0.0001059,2]
[420935777,1776747040368,-14618.2072,0.0001059,2]
[420935778,1776747040378,-260.0,0.000106,2]
[420935779,1776747040387,-1000.0,0.000106,2]
[420935780,1776747040396,-541.72177195,0.000106,2]
[420935781,1776747040406,-1329.77168979,0.000106,2]
[420935782,1776747040415,-1160.02821622,0.000106,2]
[420935783,1776747040425,-1288.00508783,0.000106,2]
[420935784,1776747040434,-151.0,0.000106,2]
[420935785,1776747040444,-151.0,0.000106,2]
[420935786,1776747040454,-504.50302379,0.000106,2]
[420935787,1776747040463,-1066.71566083,0.000106,2]
[420935788,1776747040472,-1182.63509433,0.000106,2]
[420935789,1776747040481,-1218.40233857,0.000106,2]
[420935790,1776747040491,-1000.0,0.000106,4]
[420935791,1776747040500,-1000.0,0.000106,5]
[420935792,1776747040509,-299.99,0.000106,2]
[420935793,1776747040519,-20039.57,0.000106,2]
[420935794,1776747040528,-262.87897332,0.000106,2]
[420935795,1776747040537,-5000.0,0.000106,2]
[420935796,1776747040547,-600.07881908,0.00010609,2]
[420935797,1776747040556,-500.0,0.00010609,2]
[420935798,1776747040566,-500.0,0.00010609,2]
[420935799,1776747040575,-510.04246242,0.00010609,2]
[420935800,1776747040584,-500.0,0.00010609,2]
[420935801,1776747040593,-500.0,0.00010609,2]
[420935802,1776747040603,-500.0,0.00010609,2]
[420935803,1776747040612,-500.0,0.00010609,2]
[420935804,1776747040621,-500.0,0.00010609,2]
[420935805,1776747040631,-500.0,0.00010609,2]
[420935806,1776747040640,-295.09529866,0.00010609,2]
[420935807,1776747040649,-500.0,0.00010609,2]
[420935808,1776747040659,-500.0,0.00010609,2]
[420935809,1776747040668,-500.0,0.00010609,2]
[420935810,1776747040678,-500.0,0.00010609,2]
[420935811,1776747040688,-999.99,0.0001061,2]
[420935812,1776747040697,-9999.99,0.0001061,2]
[420935814,1776747040706,-509.90946694,0.0001061,2]
[420935815,1776747040948,-1795.49356464,0.0001061,2]
[420935817,1776747040978,-591.07158026,0.0001061,2]
[420935820,1776747040991,-644.38,0.0001061,2]
[420935832,1776747045883,-160.0,0.000106,2]
[420935833,1776747045892,-332.98298303,0.0001061,2]
[420935834,1776747046147,-511.63701206,0.0001061,2]
[420935835,1776747046308,-2238.46539307,0.0001061,2]
[420935836,1776747046317,-3483.42134584,0.0001061,2]
[420935844,1776747046944,-648.92043422,0.0001061,2]
[420935845,1776747046998,-661.24,0.0001061,2]
[420936090,1776747895540,-10000.0,0.0001672,120]
[420936095,1776748155403,-1500.0,9.507e-05,2]
[420936096,1776748155426,-500.0,9.595e-05,2]
[420936097,1776748155449,-165.97,9.642e-05,2]
[420936098,1776748155470,-2000.0,9.658e-05,2]
[420936099,1776748155492,-300.0,9.692e-05,2]
[420936100,1776748155515,-1200.0,9.726e-05,2]
[420936101,1776748155537,-300.0,9.726e-05,2]
[420936102,1776748155559,-4034.03,9.727e-05,2]
[420936103,1776748157821,-5629.23,9.727e-05,2]
[420936104,1776748157843,-1852.42,9.768e-05,2]
[420936105,1776748157866,-2518.35,9.785e-05,2]
[420936106,1776748159183,-8030.86,9.785e-05,2]
[420936107,1776748159205,-260.0,9.863e-05,2]
[420936114,1776748232163,-578.20924308,0.00010089,2]
[420936115,1776748232174,-831.81180185,0.00010131,2]
[420936116,1776748232272,-368.18819815,0.00010131,2]
[420936117,1776748232282,-2173.0211,0.00010132,2]
[420936118,1776748232292,-164289.3337,0.00010132,2]
[420936119,1776748232302,-151.0,0.00010226,2]
[420936120,1776748232312,-721.12765535,0.00010226,2]
[420936121,1776748232322,-151.0,0.00010226,2]
[420936122,1776748232332,-151.0,0.00010226,2]
[420936123,1776748232342,-151.0,0.00010226,2]
[420936124,1776748232352,-151.0,0.00010226,2]
[420936125,1776748232362,-151.0,0.00010226,2]
[420936126,1776748232372,-151.0,0.00010226,2]
[420936127,1776748232382,-151.0,0.00010226,2]
[420936129,1776748232392,-151.0,0.00010226,2]
[420936130,1776748232402,-151.0,0.00010226,2]
[420936131,1776748232412,-151.0,0.00010226,2]
[420936132,1776748232422,-1000.0,0.00010226,2]
[420936133,1776748232432,-1000.0,0.00010226,2]
[420936134,1776748232442,-1000.0,0.00010226,2]
[420936135,1776748232452,-1000.0,0.00010226,2]
[420936136,1776748232462,-706.78379292,0.00010226,2]
[420936137,1776748232471,-502.74187909,0.00010231,2]
[420936138,1776748232482,-551.31877236,0.00010231,2]
[420936139,1776748232491,-551.31877236,0.00010231,2]
[420936140,1776748232501,-551.31877236,0.00010231,2]
[420936141,1776748232510,-551.31877236,0.00010231,2]
[420936143,1776748232520,-551.31877236,0.00010231,2]
[420936145,1776748232529,-551.31877236,0.00010231,2]
[420936147,1776748232539,-551.31877236,0.00010231,2]
[420936149,1776748232548,-551.31877236,0.00010231,2]
[420936151,1776748232557,-551.31877236,0.00010231,2]
[420936153,1776748232566,-551.31877236,0.00010231,2]
[420936154,1776748232575,-551.31877236,0.00010231,2]
[420936155,1776748232585,-551.31877236,0.00010231,2]
[420936156,1776748232595,-551.31877236,0.00010231,2]
[420936157,1776748232604,-551.31877236,0.00010231,2]
[420936158,1776748232614,-551.31877236,0.00010231,2]
[420936159,1776748232623,-551.31877236,0.00010231,2]
[420936160,1776748232633,-551.31877236,0.00010231,2]
[420936161,1776748232643,-551.31877236,0.00010231,2]
[420936162,1776748232652,-551.31877236,0.00010231,2]
[420936163,1776748232662,-551.31877236,0.00010231,2]
[420936164,1776748232672,-551.31877236,0.00010231,2]
[420936165,1776748232682,-551.31877236,0.00010231,2]
[420936166,1776748232692,-551.31877236,0.00010231,2]
[420936167,1776748232702,-551.31877236,0.00010231,2]
[420936168,1776748232711,-551.31877236,0.00010231,2]
[420936169,1776748232720,-551.31877236,0.00010231,2]
[420936170,1776748232730,-551.31877236,0.00010231,2]
[420936171,1776748232739,-551.31877236,0.00010231,2]
[420936172,1776748232749,-551.31877236,0.00010231,2]
[420936173,1776748232758,-551.31877236,0.00010231,2]
[420936174,1776748232767,-551.31877236,0.00010231,2]
[420936175,1776748232777,-551.31877236,0.00010231,2]
[420936176,1776748232787,-551.31877236,0.00010231,2]
[420936177,1776748232796,-551.31877236,0.00010231,2]
[420936178,1776748232806,-551.31877236,0.00010231,2]
[420936179,1776748232816,-551.31877236,0.00010231,2]
[420936180,1776748232825,-551.31877236,0.00010231,2]
[420936181,1776748232835,-551.31877236,0.00010231,2]
[420936182,1776748232844,-551.31877236,0.00010231,2]
[420936183,1776748232854,-551.31877236,0.00010231,2]
[420936184,1776748232863,-551.31877236,0.00010231,2]
[420936185,1776748232872,-551.31877236,0.00010231,2]
[420936186,1776748232882,-551.31877236,0.00010231,2]
[420936187,1776748232891,-551.31877236,0.00010231,2]
[420936188,1776748232901,-551.31877236,0.00010231,2]
[420936189,1776748232911,-551.31877236,0.00010231,2]
[420936190,1776748232920,-551.31877236,0.00010231,2]
[420936191,1776748232930,-551.31877236,0.00010231,2]
[420936192,1776748232940,-551.31877236,0.00010231,2]
[420936193,1776748232949,-551.31877236,0.00010231,2]
[420936194,1776748232958,-547.07785873,0.00010231,2]
[420936195,1776748232968,-547.07785873,0.00010231,2]
[420936196,1776748232977,-547.07785873,0.00010231,2]
[420936197,1776748232987,-547.07785873,0.00010231,2]
[420936198,1776748232996,-547.07785873,0.00010231,2]
[420936199,1776748233005,-547.07785873,0.00010231,2]
[420936200,1776748233015,-547.07785873,0.00010231,2]
[420936201,1776748233025,-547.07785873,0.00010231,2]
[420936202,1776748233034,-547.07785873,0.00010231,2]
[420936203,1776748233044,-547.07785873,0.00010231,2]
[420936204,1776748233053,-547.07785873,0.00010231,2]
[420936205,1776748233062,-547.07785873,0.00010231,2]
[420936206,1776748233072,-547.07785873,0.00010231,2]
[420936207,1776748233081,-547.07785873,0.00010231,2]
[420936208,1776748233091,-547.07785873,0.00010231,2]
[420936209,1776748233100,-547.07785873,0.00010231,2]
[420936210,1776748233110,-547.07785873,0.00010231,2]
[420936211,1776748233119,-547.07785873,0.00010231,2]
[420936212,1776748233128,-547.07785873,0.00010231,2]
[420936213,1776748233138,-547.07785873,0.00010231,2]
[420936214,1776748233147,-547.07785873,0.00010231,2]
[420936215,1776748233157,-547.07785873,0.00010231,2]
[420936216,1776748233167,-547.07785873,0.00010231,2]
[420936217,1776748233176,-547.07785873,0.00010231,2]
[420936218,1776748233185,-547.07785873,0.00010231,2]
[420936219,1776748233195,-547.07785873,0.00010231,2]
[420936220,1776748233205,-547.07785873,0.00010231,2]
[420936221,1776748233214,-547.07785873,0.00010231,2]
[420936222,1776748233223,-547.07785873,0.00010231,2]
[420936223,1776748233232,-547.07785873,0.00010231,2]
[420936224,1776748233243,-547.07785873,0.00010231,2]
[420936225,1776748233252,-547.07785873,0.00010231,2]
[420936226,1776748233262,-551.31877236,0.00010231,2]
[420936227,1776748233271,-500.0,0.00010231,2]
[420936228,1776748233281,-165.52394141,0.00010231,2]
[420936229,1776748233290,-500.0,0.00010231,2]
[420936230,1776748233299,-500.0,0.00010231,2]
[420936231,1776748233309,-451.31369625,0.00010231,2]
[420936232,1776748233319,-547.07785873,0.00010231,2]
[420936233,1776748233328,-320.22299895,0.00010231,2]
[420936234,1776748233337,-645.14898653,0.00010231,2]
[420936235,1776748233346,-645.14898653,0.00010231,2]
[420936236,1776748233356,-645.14898653,0.00010231,2]
[420936237,1776748233365,-645.14898653,0.00010231,2]
[420936238,1776748233374,-645.14898653,0.00010231,2]
[420936239,1776748233384,-500.0,0.00010231,2]
[420936240,1776748233393,-507.47291306,0.00010231,2]
[420936241,1776748233403,-585.95925954,0.00010231,2]
[420936242,1776748233413,-500.0,0.00010231,2]
[420936243,1776748233423,-500.0,0.00010231,2]
[420936244,1776748233433,-568.75040849,0.00010231,2]
[420936245,1776748233443,-500.0,0.00010231,2]
[420936246,1776748233452,-500.0,0.00010231,2]
[420936247,1776748233462,-500.0,0.00010231,2]
[420936248,1776748233471,-500.0,0.00010231,2]
[420936249,1776748233481,-607.0297237,0.00010231,2]
[420936250,1776748233490,-150.99,0.00010232,2]
[420936251,1776748233499,-299.99,0.00010232,2]
[420936252,1776748233509,-9999.99,0.00010232,2]
[420936253,1776748233519,-42393.1416001,0.00010232,2]
[420936254,1776748233533,-4630.69112263,0.00010232,2]
[420936255,1776748233544,-7583.83386985,0.00010232,2]
[420936256,1776748233563,-314.57995572,0.00010232,2]
[420936257,1776748233574,-448.42004428,0.00010232,2]
[420936266,1776748238284,-500.0,0.00010231,2]
[420936267,1776748238293,-293.66649967,0.00010231,2]
[420936268,1776748238652,-206.33350033,0.00010231,2]
[420936269,1776748238662,-500.0,0.00010231,2]
[420936270,1776748238671,-500.0,0.00010231,2]
[420936271,1776748238680,-32139.17343528,0.00010232,2]
[420936272,1776748238692,-37785.15997214,0.00010232,2]
[420936273,1776748238701,-11208.32435753,0.00010232,2]
[420936274,1776748238712,-202.32564247,0.00010232,2]
[420936275,1776748238721,-1521.89,0.00010232,2]
[420936276,1776748238731,-101.92301913,0.00010457,2]
[420936323,1776748240388,-872.9941877,0.00010457,2]
[420936332,1776748246100,-15098.88620049,0.00010032,2]
[420936333,1776748246153,-875.94227771,0.00010032,2]
[420936334,1776748246259,-9263.48866085,0.00010032,2]
[420936335,1776748246366,-1971.91147274,0.00010032,2]
[420936337,1776748347317,5176.76,8.222e-05,2]
[420936339,1776748388155,151.0,8.222e-05,3]
[420936341,1776748447365,151.0,8.222e-05,3]
[420936342,1776748505507,165.0,8.222e-05,3]
[420936343,1776748508350,151.0,8.222e-05,3]
[420936344,1776748564477,4205.25,7.49e-05,2]
[420936345,1776748564499,10000.01,7.49e-05,2]
[420936346,1776748564521,10000.01,7.49e-05,2]
[420936347,1776748564543,10000.01,7.49e-05,2]
[420936348,1776748564565,10000.01,7.49e-05,2]
[420936349,1776748564594,10000.01,7.49e-05,2]
[420936350,1776748564623,3772.32915208,7.49e-05,2]
[420936351,1776748565670,151.0,8.222e-05,3]
[420936354,1776748628048,151.0,8.222e-05,3]
[420936355,1776748639970,9849.01,7.49e-05,2]
[420936356,1776748639992,10000.01,7.49e-05,2]
[420936357,1776748640014,10000.01,7.49e-05,2]
[420936358,1776748640037,10000.01,7.49e-05,2]
[420936359,1776748640059,10000.01,7.49e-05,2]
[420936360,1776748640081,10000.01,7.49e-05,2]
[420936361,1776748640103,10000.01,7.49e-05,2]
[420936362,1776748640124,10000.01,7.49e-05,2]
[420936363,1776748640147,10000.01,7.49e-05,2]
[420936364,1776748640168,10000.01,7.49e-05,2]
[420936365,1776748640197,529697.178,7.49e-05,2]
[420936367,1776748751797,151.0,7.49e-05,3]
[420936372,1776748810720,151.0,7.49e-05,3]
[420936373,1776748812465,165.0,7.49e-05,3]
[420936374,1776748833581,165.0,7.49e-05,3]
[420936375,1776748846996,152.0,7.619e-05,7]
[420936376,1776748847632,152.0,7.619e-05,7]
[420936377,1776748871805,151.0,7.49e-05,3]
[420936380,1776748927872,151.0,7.49e-05,3]
[420936381,1776748987706,151.0,7.49e-05,3]
[420936382,1776749047719,151.0,7.49e-05,3]
[420936383,1776749105948,151.0,7.49e-05,3]
[420936384,1776749167717,151.0,7.49e-05,3]
[420936386,1776749227343,151.0,7.49e-05,3]
[420936387,1776749287508,151.0,7.49e-05,3]
[420936388,1776749346867,151.0,7.49e-05,3]
[420936393,1776749408853,152.0,7.49e-05,3]
[420936401,1776749432477,-500.0,9.081e-05,2]
[420936402,1776749432487,-574.01209574,9.251e-05,2]
[420936403,1776749432499,-1025.98790426,9.251e-05,2]
[420936404,1776749432508,-2000.0,9.471e-05,2]
[420936405,1776749432518,-217.29604166,9.497e-05,2]
[420936406,1776749432528,-166.66,9.497e-05,2]
[420936407,1776749432538,-200.0,9.544e-05,2]
[420936408,1776749432547,-282.36,9.56e-05,2]
[420936409,1776749432557,-166.66,9.811e-05,2]
[420936410,1776749432567,-730.0,9.831e-05,2]
[420936411,1776749432577,-150.0,9.831e-05,2]
[420936413,1776749432586,-4061.33245297,9.832e-05,2]
[420936414,1776749432597,-278.617552,9.832e-05,2]
[420936415,1776749432610,-703.6663457,9.832e-05,2]
[420936416,1776749432621,-1400.28333154,9.832e-05,2]
[420936417,1776749432632,-9995.2333298,9.832e-05,2]
[420936418,1776749432659,-622.24371639,9.832e-05,2]
[420936419,1776749432670,-817.79588592,9.832e-05,2]
[420936420,1776749432682,-3732.06094082,9.832e-05,2]
[420936422,1776749432694,-302784.10044486,9.832e-05,2]
[420936424,1776749432704,-351048.55910599,9.832e-05,2]
[420936426,1776749432719,-1630.87669183,9.832e-05,2]
[420936429,1776749432730,-21671.76981729,9.832e-05,2]
[420936436,1776749438532,-47611.13278489,9.832e-05,2]
[420936437,1776749438542,-217.29604165,9.863e-05,2]
[420936438,1776749438552,-260.0,9.863e-05,2]
[420936439,1776749438561,-6486.4618,9.932e-05,2]
[420936440,1776749438570,-4156.5339,9.932e-05,2]
[420936441,1776749438579,-17156.20318953,9.932e-05,2]
[420936442,1776749438593,-24192.42361047,9.932e-05,2]
[420936443,1776749438602,-2500.0,9.963e-05,2]
[420936444,1776749438612,-157.95121073,0.0001,2]
[420936445,1776749438621,-173.98048979,0.0001,2]
[420936446,1776749438631,-171.14067149,0.0001,2]
[420936447,1776749438640,-175.47224988,0.0001,2]
[420936448,1776749438650,-200.0,0.0001,2]
[420936449,1776749438659,-5310.76,0.0001,2]
[420936450,1776749438669,-248.71,0.00010026,2]
[420936451,1776749438678,-152.50047,0.00010026,2]
[420936452,1776749438687,-6193.85,0.00010026,2]
[420936453,1776749438697,-499.99,0.00010026,2]
[420936454,1776749438707,-9016.70562731,0.00010026,2]
[420936455,1776749438720,-983.28437269,0.00010026,2]
[420936456,1776749438729,-299.99,0.00010026,2]
[420936457,1776749438739,-542.86428891,0.00010026,2]
[420936458,1776749438853,-330.03740396,0.00010026,2]
[420936515,1776749440825,-648.98830713,0.00010026,2]
[420936516,1776749440835,-150.99,0.00010026,2]
[420936517,1776749440845,-10589.80916449,0.00010026,2]
[420936521,1776749444361,-271.96277641,0.00010026,2]
[420936522,1776749444404,-59062.5680591,0.00010026,2]
[420936523,1776749444413,-2810.64,0.00010026,2]
[420936524,1776749444422,-151.0,0.00010026,2]
[420936525,1776749444431,-151.0,0.00010026,2]
[420936526,1776749444440,-151.0,0.00010026,2]
[420936527,1776749444449,-151.0,0.00010026,2]
[420936528,1776749444458,-151.0,0.00010026,2]
[420936529,1776749444468,-151.0,0.00010026,2]
[420936530,1776749444477,-151.0,0.00010026,2]
[420936531,1776749444490,-151.0,0.00010026,2]
[420936532,1776749444499,-151.0,0.00010026,2]
[420936533,1776749444509,-151.0,0.00010026,2]
[420936534,1776749444519,-151.0,0.00010026,2]
[420936535,1776749444528,-11410.65,0.00010031,2]
[420936536,1776749444538,-151.0,0.00010032,2]
[420936537,1776749444547,-151.0,0.00010032,2]
[420936538,1776749444556,-578.20924308,0.00010063,2]
[420936539,1776749444566,-209.40437684,0.00010063,2]
[420936540,1776749444576,-1428.38747117,0.00010063,2]
[420936541,1776749444585,-721.12765535,0.00010063,2]
[420936542,1776749444594,-9552.16786547,0.00010063,2]
[420936543,1776749444604,-200.0,0.00010063,2]
[420936544,1776749444614,-151.0,0.00010063,2]
[420936545,1776749444624,-500.0,0.00010063,2]
[420936546,1776749444633,-472.47402962,0.00010063,2]
[420936547,1776749444643,-743.50770149,0.00010063,2]
[420936548,1776749444652,-2000.0,0.00010063,2]
[420936549,1776749444662,-2000.0,0.00010063,2]
[420936550,1776749444672,-2000.0,0.00010063,2]
[420936551,1776749444682,-2000.0,0.00010063,2]
[420936552,1776749444692,-2000.0,0.00010063,2]
[420936553,1776749444701,-2000.0,0.00010063,2]
[420936554,1776749444711,-187.88704978,0.00010063,2]
[420936555,1776749444721,-151.2653144,0.00010063,2]
[420936556,1776749444731,-1000.0,0.00010063,2]
[420936557,1776749444742,-1000.0,0.00010063,2]
[420936558,1776749444752,-9905.5980765,0.00010118,2]
[420936559,1776749444761,-151.0,0.00010118,2]
[420936560,1776749444771,-500.0,0.00010118,2]
[420936561,1776749444781,-166.66,0.00010124,2]
[420936562,1776749444791,-611.81980635,0.00010134,2]
[420936563,1776749444800,-3670.3254,0.00010136,2]
[420936564,1776749444810,-500.0,0.00010146,2]
[420936565,1776749444820,-150.0,0.00010146,2]
[420936566,1776749444830,-500.0,0.00010146,2]
[420936567,1776749444839,-150.0,0.00010146,2]
[420936568,1776749444849,-500.0,0.00010146,2]
[420936569,1776749444858,-150.0,0.00010146,2]
[420936570,1776749444868,-500.0,0.00010146,2]
[420936571,1776749444877,-150.0,0.00010146,2]
[420936572,1776749444887,-500.0,0.00010146,2]
[420936573,1776749444899,-153.00071471,0.00010146,2]
[420936574,1776749444908,-150.0,0.00010146,2]
[420936575,1776749444918,-150.0,0.00010146,2]
[420936576,1776749444927,-500.0,0.00010146,2]
[420936577,1776749444941,-150.0,0.00010146,2]
[420936578,1776749444951,-150.0,0.00010146,2]
[420936579,1776749444961,-150.0,0.00010146,2]
[420936580,1776749444971,-350.0,0.00010146,2]
[420936581,1776749444980,-200.0,0.00010146,2]
[420936582,1776749444990,-150.0,0.00010146,2]
[420936583,1776749445000,-150.0,0.00010146,2]
[420936584,1776749445010,-150.0,0.00010146,2]
[420936585,1776749445020,-250.0,0.00010146,2]
[420936586,1776749445029,-150.0,0.00010146,2]
[420936587,1776749445039,-500.0,0.00010146,2]
[420936588,1776749445049,-500.0,0.00010146,2]
[420936589,1776749445058,-171.9425486,0.00010146,2]
[420936590,1776749445068,-150.0,0.00010146,2]
[420936591,1776749445077,-150.0,0.00010146,2]
[420936592,1776749445087,-157.03954452,0.00010146,2]
[420936593,1776749445097,-151.0,0.00010173,2]
[420936594,1776749445107,-151.0,0.00010173,2]
[420936595,1776749445116,-9211.34798985,0.00010173,2]
[420936596,1776749445126,-151.0,0.00010173,2]
[420936597,1776749445136,-500.0,0.00010173,2]
[420936598,1776749445146,-362.25321994,0.00010177,2]
[420936599,1776749445155,-4784.99482182,0.00010177,2]
[420936600,1776749445165,-250.0,0.00010177,2]
[420936601,1776749445174,-301.92342521,0.00010177,2]
[420936602,1776749445184,-338.5318373,0.00010177,2]
[420936603,1776749445194,-300.0,0.00010177,2]
[420936604,1776749445203,-1341.527124,0.00010177,2]
[420936605,1776749445213,-151.0,0.00010181,2]
[420936606,1776749445223,-2982.0752674,0.00010205,2]
[420936607,1776749445232,-151.0,0.00010228,2]
[420936608,1776749445242,-500.0,0.00010228,2]
[420936609,1776749445251,-151.0,0.00010283,2]
[420936610,1776749445261,-500.0,0.00010283,2]
[420936611,1776749445271,-248.71,0.000103,2]
[420936612,1776749445281,-5530.0,0.000103,5]
[420936613,1776749445291,-151.0,0.00010338,2]
[420936614,1776749445300,-500.0,0.00010338,2]
[420936615,1776749445314,-350.0,0.00010383,2]
[420936616,1776749445323,-157.12837852,0.00010393,2]
[420936617,1776749445333,-525.0,0.00010408,5]
[420936618,1776749445344,-1600.0,0.00010408,2]
[420936619,1776749445353,-350.0,0.00010416,2]
[420936620,1776749445363,-166.66,0.00010438,2]
[420936621,1776749445373,-269.1379965,0.00010485,2]
[420936622,1776749445383,-5362.0358689,0.00010486,2]
[420936623,1776749445392,-2000.0,0.000105,2]
[420936624,1776749445406,-2000.0,0.000105,2]
[420936625,1776749445415,-2000.0,0.000105,2]
[420936626,1776749445425,-2000.0,0.000105,2]
[420936627,1776749445434,-151.0,0.00010501,2]
[420936628,1776749445444,-151.0,0.00010501,2]
[420936629,1776749445453,-151.0,0.00010501,2]
[420936630,1776749445462,-1000.0,0.00010501,2]
[420936631,1776749445471,-25123.6612,0.00010501,2]
[420936632,1776749445482,-248.71,0.00010574,2]
[420936633,1776749445491,-19392.62220157,0.00010585,2]
[420936634,1776749445501,-151.0,0.00010598,2]
[420936635,1776749445510,-153.4004789,0.00010598,2]
[420936636,1776749445520,-161.0,0.000106,2]
[420936637,1776749445530,-5000.0,0.000106,2]
[420936638,1776749445540,-151.187825,0.00010601,2]
[420936639,1776749445549,-205.79069378,0.0001061,2]
[420936640,1776749445559,-151.0,0.0001061,2]
[420936641,1776749445569,-2000.0,0.0001061,2]
[420936642,1776749445579,-2000.0,0.0001061,2]
[420936643,1776749445588,-210.67170743,0.00010611,2]
[420936644,1776749445598,-896.77323467,0.00010611,2]
[420936645,1776749446678,-217.18809666,0.00010611,2]
[420936646,1776749446688,-584.46457294,0.00010611,2]
[420936647,1776749446698,-201.45445377,0.00010611,2]
[420936648,1776749446707,-784.61071529,0.00010611,2]
[420936649,1776749446717,-493.9550828,0.00010654,2]
[420936650,1776749446726,-151.0,0.00010682,2]
[420936651,1776749446736,-151.0,0.00010687,2]
[420936652,1776749446746,-151.0,0.0001069,2]
[420936653,1776749446755,-151.0,0.00010697,2]
[420936654,1776749446765,-501.0,0.000107,5]
[420936655,1776749446775,-528.0,0.000107,5]
[420936656,1776749446784,-10679.57871967,0.000107,2]
[420936927,1776750631734,-1500.0,9.24e-05,2]
[420936928,1776750631744,-281.4347487,9.244e-05,2]
[420936929,1776750631756,-618.31401655,9.244e-05,2]
[420936930,1776750631768,-762.98123475,9.244e-05,2]
[420936931,1776750631777,-2000.0,9.486e-05,2]
[420936932,1776750631787,-217.29604165,9.578e-05,2]
[420936933,1776750631796,-953.4417,9.632e-05,2]
[420936934,1776750631806,-5000.0,9.635e-05,2]
[420936935,1776750631815,-5000.0,9.635e-05,2]
[420936936,1776750631825,-5000.0,9.635e-05,2]
[420936938,1776750631834,-945.21900207,9.635e-05,2]
[420936941,1776750631846,-4054.78099793,9.635e-05,2]
[420936943,1776750631856,-1200.0,9.67e-05,2]
[420936945,1776750631865,-1852.42,9.671e-05,2]
[420936947,1776750631875,-607.56,9.723e-05,2]
[420936949,1776750631886,-150.0,9.731e-05,2]
[420936951,1776750631895,-240.06314835,9.731e-05,2]
[420936953,1776750631905,-500.0,9.731e-05,2]
[420936955,1776750631914,-500.0,9.731e-05,2]
[420936957,1776750631923,-500.0,9.731e-05,2]
[420936959,1776750631933,-500.0,9.731e-05,2]
[420936961,1776750631943,-500.0,9.731e-05,2]
[420936963,1776750631953,-500.0,9.731e-05,2]
[420936965,1776750631962,-500.0,9.731e-05,2]
[420936967,1776750631972,-500.0,9.731e-05,2]
[420936968,1776750631982,-500.0,9.731e-05,2]
[420936969,1776750631992,-500.0,9.731e-05,2]
[420936971,1776750632002,-472.52921073,9.731e-05,2]
[420936973,1776750632011,-500.0,9.731e-05,2]
[420936975,1776750632020,-500.0,9.731e-05,2]
[420936977,1776750632030,-1000.0,9.732e-05,2]
[420936979,1776750632040,-4156.5339,9.732e-05,2]
[420936981,1776750632049,-41348.6268,9.732e-05,2]
[420936983,1776750632059,-14105.35237172,9.732e-05,2]
[420936984,1776750632080,-62533.70842828,9.732e-05,2]
[420936985,1776750632089,-6486.4618,9.732e-05,2]
[420936986,1776750632099,-310.45,9.831e-05,2]
[420936987,1776750632109,-260.0,9.863e-05,2]
[420936988,1776750632118,-7977.3,9.863e-05,2]
[420936989,1776750632128,-500.0,9.877e-05,2]
[420936990,1776750632137,-500.0,9.877e-05,2]
[420936991,1776750632147,-500.0,9.877e-05,2]
[420936992,1776750632157,-500.0,9.877e-05,2]
[420936993,1776750632166,-150.0,9.877e-05,2]
[420936994,1776750632176,-500.0,9.877e-05,2]
[420936995,1776750632186,-178.96925187,9.877e-05,2]
[420936996,1776750632195,-500.0,9.877e-05,2]